bitfinex/quotes_SOLUSD_20241007
["timestamp","ask_amount","ask_price","bid_price","bid_amount"]
[1728314168209,23.776884,149.39,149.3,16.7447]
[1728314168411,6.6959,149.35,149.29,6.6982]
[1728314168618,6.6961,149.34,149.27,6.6988]
[1728314168793,16.7379,149.37,149.26,23.8883479]
[1728314169001,23.776884,149.36,149.26,23.8883479]
[1728314169426,23.776884,149.4,149.28,16.7459]
[1728314169635,23.776884,149.35,149.31,16.8435]
[1728314170024,30.472984,149.35,149.31,0.1]
[1728314170238,23.776884,149.35,149.31,0.1]
[1728314170618,6.6968,149.33,149.31,0.1]
[1728314170815,6.6965,149.34,149.31,0.1]
[1728314171044,23.776884,149.37,149.31,0.1]
[1728314171232,6.6956,149.36,149.31,0.1]
[1728314171439,6.6958,149.35,149.31,0.1]
[1728314171638,6.6961,149.34,149.31,0.1]
[1728314171940,16.7357,149.39,149.31,0.1]
[1728314172236,6.6961,149.34,149.31,0.1]
[1728314172443,6.6957,149.35,149.31,0.1]
[1728314172643,6.92520566,149.35,149.31,0.1]
[1728314172860,6.6963,149.34,149.31,0.1]
[1728314173422,6.92520566,149.35,149.31,0.1]
[1728314173423,6.697,149.32,149.31,0.1]
[1728314173934,6.92520566,149.35,149.26,23.8886479]
[1728314173935,6.6992,149.27,149.26,0.8412479]
[1728314174128,30.476084,149.27,149.26,4.79e-05]
[1728314174430,6.92520566,149.35,149.21,0.1]
[1728314174431,30.478384,149.22,149.21,0.1]
[1728314174629,10.92183546,149.22,149.11,0.9412479]
[1728314174837,27.67593546,149.22,149.11,0.9412479]
[1728314175039,6.7034,149.18,149.11,0.9412479]
[1728314175231,23.776884,149.21,149.11,0.9412479]
[1728314175425,6.704,149.17,149.11,0.9412479]
[1728314175855,6.706,149.12,149.11,0.9412479]
[1728314176045,6.706,149.12,149.03,6.3047]
[1728314176046,6.707,149.1,149.02,16.7762]
[1728314176365,6.7061,149.12,149.03,6.7098]
[1728314176676,6.7053,149.14,149.02,47.06042368]
[1728314176968,6.7067,149.11,149.02,47.06042368]
[1728314177173,6.7058,149.13,149.02,47.06042368]
[1728314177476,16.7581,149.19,149.02,47.06042368]
[1728314177678,24.62069572,149.19,149.05,30.28422368]
[1728314178047,6.7052,149.14,149.06,6.7085]
[1728314178259,34.70972656,149.18,149.02,16.7762]
[1728314178543,34.70972656,149.18,149.0,15.4731]
[1728314178544,6.7083,149.07,149.0,15.4731]
[1728314178851,6.7075,149.09,149.0,22.1843]
[1728314179172,8.3980183,149.17,149.05,6.7089]
[1728314179173,6.7058,149.13,149.05,6.7089]
[1728314179477,23.776884,149.16,149.03,6.7099]
[1728314179772,6.708,149.08,149.0,22.1843]
[1728314179947,6.708,149.08,149.01,47.16142368]
[1728314180150,6.7075,149.09,149.01,23.5878]
[1728314180382,23.776884,149.14,149.01,16.8772]
[1728314180571,6.7075,149.09,149.01,16.8772]
[1728314180865,6.7086,149.07,149.01,0.1]
[1728314181068,6.7067,149.11,149.01,30.38422368]
[1728314181273,0.30277426,149.13,149.03,16.7746]
[1728314181449,6.7074,149.09,149.03,16.7746]
[1728314181643,0.30277426,149.13,149.03,23.4845]
[1728314181851,6.7076,149.09,149.03,23.4845]
[1728314182057,0.30277426,149.13,149.01,30.38422368]
[1728314182365,6.708,149.08,149.02,6.7103]
[1728314182580,6.7083,149.07,149.01,0.1]
[1728314182871,6.92549386,149.1,149.01,0.1]
[1728314183061,6.708,149.08,149.02,6.7104]
[1728314183254,23.776884,149.09,149.01,0.1]
[1728314183460,34.4069523,149.09,149.01,0.1]
[1728314183660,6.7096,149.04,149.01,0.1]
[1728314183857,51.1754523,149.09,149.01,0.1]
[1728314184274,6.7105,149.02,149.01,0.1]
[1728314184664,30.487384,149.02,149.01,0.1]
[1728314185189,6.7105,149.02,149.01,0.1]
[1728314185389,15.4814185,149.02,149.01,0.1]
[1728314185683,10.93284256,149.05,149.01,0.1]
[1728314185983,8.3980183,149.08,149.01,0.1]
[1728314185984,6.7105,149.02,149.01,0.1]
[1728314186186,6.7105,149.02,149.01,0.0001]
[1728314186483,17.64334256,149.02,149.01,0.0001]
[1728314187396,17.64334256,149.02,148.91,0.1]
[1728314187397,6.715,148.92,148.91,0.1]
[1728314187686,17.64784256,148.92,148.91,0.1]
[1728314188193,10.93284256,148.97,148.91,0.1]
[1728314188563,16.7804,148.99,148.91,0.1]
[1728314188763,6.715,148.92,148.91,0.1]
[1728314188963,0.30277426,148.98,148.91,0.1]
[1728314188964,6.7137,148.95,148.91,0.1]
[1728314189283,6.715,148.92,148.91,0.1]
[1728314189475,6.7186,148.84,148.83,0.7213257]
[1728314189678,10.93284256,148.9,148.83,0.7213257]
[1728314190159,1.53235495,148.92,148.83,0.7213257]
[1728314190160,6.7168,148.88,148.83,0.7213257]
[1728314190366,10.93284256,148.92,148.83,0.7213257]
[1728314190560,8.3980183,148.94,148.83,0.7213257]
[1728314190877,6.7157,148.91,148.84,13.122]
[1728314191078,6.7155,148.91,148.84,13.1221]
[1728314191379,6.7158,148.91,148.84,6.4035]
[1728314191583,6.716,148.9,148.84,13.122]
[1728314191792,6.7154,148.92,148.85,6.7181]
[1728314191993,6.715,148.92,148.86,6.7176]
[1728314192306,6.715,148.92,148.84,23.1998]
[1728314192307,6.7145,148.93,148.87,6.7172]
[1728314192596,6.7136,148.96,148.89,6.7162]
[1728314192798,16.7804,148.99,148.89,6.7162]
[1728314192998,16.7804,148.99,148.9,6.7158]
[1728314193201,6.7137,148.95,148.9,6.7158]
[1728314193396,6.7132,148.96,148.9,6.7158]
[1728314193577,6.7132,148.96,148.91,6.7153]
[1728314193778,6.92910006,148.98,148.87,16.7927]
[1728314193779,13.64180006,148.98,148.92,6.7148]
[1728314194193,6.7128,148.97,148.92,6.7148]
[1728314194378,6.7128,148.97,148.91,6.7154]
[1728314195492,6.7135,148.96,148.9,23.5053]
[1728314196008,6.7128,148.97,148.91,6.7152]
[1728314196300,6.7133,148.96,148.91,6.7152]
[1728314196676,6.92910006,148.98,148.93,16.7863]
[1728314196895,6.92910006,148.98,148.92,16.0895]
[1728314197209,6.7135,148.96,148.92,16.0895]
[1728314197400,23.70990006,148.98,148.87,16.7931]
[1728314197698,6.7143,148.94,148.89,6.7159]
[1728314197891,6.7136,148.96,148.9,6.7157]
[1728314198401,6.7136,148.96,148.91,6.7153]
[1728314198581,6.92910006,148.98,148.92,16.7874]
[1728314198895,6.7127,148.97,148.92,23.5023]
[1728314199610,13.64140006,148.98,148.93,6.7145]
[1728314200193,6.92910006,148.98,148.94,6.7139]
[1728314200400,6.92910006,148.98,148.97,6.7127]
[1728314200708,6.92910006,148.98,148.95,6.1913]
[1728314201204,13.64140006,148.98,148.95,6.1913]
[1728314201390,6.7128,148.97,148.95,6.1913]
[1728314201980,6.92910006,148.98,148.9,6.2761]
[1728314202186,6.7136,148.95,148.9,12.992]
[1728314202384,6.7136,148.95,148.9,6.2761]
[1728314202690,6.7142,148.94,148.9,6.2761]
[1728314203093,6.7137,148.95,148.9,12.9916]
[1728314203300,6.7137,148.95,148.9,6.2761]
[1728314203499,23.71060006,148.98,148.9,6.2761]
[1728314203699,6.92910006,148.98,148.9,6.2761]
[1728314203910,6.92910006,148.98,148.9,23.0652]
[1728314204509,6.7132,148.96,148.91,6.715]
[1728314205310,6.7133,148.96,148.92,6.7149]
[1728314205501,6.92910006,148.98,148.9,53.34942368]
[1728314205810,13.64150006,148.98,148.93,6.7144]
[1728314206114,13.64150006,148.98,148.92,16.7867]
[1728314206115,6.92910006,148.98,148.94,6.7139]
[1728314206414,6.92910006,148.98,148.95,6.7135]
[1728314207118,13.64140006,148.98,148.93,6.7142]
[1728314207607,6.7128,148.97,148.92,16.7867]
[1728314207912,6.42910006,148.98,148.92,16.7867]
[1728314208119,13.14150006,148.98,148.92,16.7867]
[1728314208499,6.42910006,148.98,148.94,16.7844]
[1728314208817,6.42910006,148.98,148.95,6.7136]
[1728314209409,6.42910006,148.98,148.94,16.7844]
[1728314209707,6.42910006,148.98,148.95,6.7136]
[1728314210515,6.42910006,148.98,148.94,16.7844]
[1728314210898,6.42910006,148.98,148.97,6.7127]
[1728314211098,6.42910006,148.98,148.96,16.7824]
[1728314211305,6.42910006,148.98,148.97,6.7127]
[1728314211703,6.42910006,148.98,148.96,23.4954]
[1728314212398,6.42910006,148.98,148.94,6.7141]
[1728314212910,6.42910006,148.98,148.94,16.7843]
[1728314213111,6.42910006,148.98,148.91,23.776884]
[1728314213411,6.42910006,148.98,148.97,6.7127]
[1728314214705,6.709,149.06,149.01,6.7108]
[1728314215010,6.7092,149.05,149.01,16.7768]
[1728314215209,16.7687,149.09,148.98,47.06432368]
[1728314215413,6.7097,149.04,148.98,47.06432368]
[1728314215602,16.7711,149.07,148.97,15.5785]
[1728314215803,16.7792,149.0,148.92,15.7097]
[1728314216022,15.12763688,149.04,148.92,15.7097]
[1728314216224,27.63792241,149.03,148.92,15.7097]
[1728314216398,16.7757,149.03,148.92,15.7097]
[1728314216609,16.7779,149.01,148.92,22.4246]
[1728314216807,6.7133,148.96,148.92,22.4246]
[1728314217108,6.7131,148.97,148.92,22.4246]
[1728314217317,6.7127,148.97,148.93,6.7144]
[1728314217527,6.7119,148.99,148.94,6.7138]
[1728314218032,6.7132,148.96,148.92,22.4243]
[1728314218331,6.7128,148.97,148.92,22.4243]
[1728314218626,16.7779,149.01,148.92,15.7097]
[1728314218627,6.7133,148.96,148.92,15.7097]
[1728314218935,6.7141,148.94,148.92,15.7097]
[1728314219098,6.7132,148.96,148.92,15.7097]
[1728314220010,6.7132,148.96,148.92,22.4247]
[1728314220422,16.7768,149.02,148.94,6.7139]
[1728314220625,6.7122,148.99,148.95,6.7136]
[1728314220830,16.7768,149.02,148.92,32.4966]
[1728314221039,2.17972131,149.0,148.92,32.4966]
[1728314221344,6.7142,148.94,148.92,15.7097]
[1728314221507,6.7141,148.94,148.9,6.2761]
[1728314221713,6.7145,148.93,148.9,5.7761]
[1728314222033,6.7163,148.89,148.86,16.3297]
[1728314222328,1.51610759,148.96,148.86,16.3297]
[1728314222329,6.7172,148.87,148.86,16.3297]
[1728314222531,6.7172,148.87,148.83,0.7213257]
[1728314223232,6.7169,148.88,148.83,7.4400257]
[1728314223451,16.7879,148.92,148.83,7.4400257]
[1728314223617,6.7164,148.89,148.84,6.7185]
[1728314223818,6.7168,148.88,148.84,6.7185]
[1728314224136,6.7168,148.88,148.83,0.7213257]
[1728314224819,33.5716,148.94,148.83,0.7213257]
[1728314224820,6.7186,148.84,148.83,0.7213257]
[1728314225336,16.7928,148.88,148.83,0.7213257]
[1728314225337,6.7182,148.85,148.83,0.7213257]
[1728314226426,6.93247609,148.9,148.83,0.7213257]
[1728314226629,6.93247609,148.9,148.84,6.7185]
[1728314226630,6.7167,148.89,148.84,6.7185]
[1728314227337,6.7154,148.92,148.83,31.00554938]
[1728314227538,6.7154,148.92,148.88,6.7167]
[1728314227745,6.7137,148.95,148.89,30.28422368]
[1728314228037,6.92756595,148.97,148.92,30.28422368]
[1728314228241,6.7114,149.0,148.96,6.7132]
[1728314228414,6.7114,149.0,148.95,36.99782368]
[1728314228614,6.7108,149.02,148.96,6.7129]
[1728314228815,6.7108,149.02,148.95,30.28422368]
[1728314229023,6.92976804,149.03,148.95,30.28422368]
[1728314229279,6.92976804,149.03,148.98,6.7122]
[1728314229541,16.7684,149.09,148.98,36.99642368]
[1728314229740,6.93317011,149.07,148.98,36.99642368]
[1728314230047,6.7095,149.05,148.99,6.7118]
[1728314230224,6.7095,149.05,148.98,30.28422368]
[1728314230225,6.7087,149.06,149.0,6.7111]
[1728314230432,6.7082,149.07,149.01,36.99512368]
[1728314230943,6.7088,149.06,149.01,47.06122368]
[1728314231246,6.7086,149.07,149.01,47.06122368]
[1728314231548,6.93451836,149.09,149.01,30.28422368]
[1728314231760,6.7101,149.03,148.99,6.1427]
[1728314232435,27.0956759,149.08,148.99,6.1427]
[1728314232637,5.18949324,149.07,148.99,6.1427]
[1728314232964,6.71,149.03,148.99,6.1427]
[1728314233537,6.7114,149.0,148.99,6.1427]
[1728314233734,6.7109,149.01,148.95,30.28422368]
[1728314234041,6.7101,149.03,148.98,36.99642368]
[1728314235532,17.93593068,149.08,149.0,6.7113]
[1728314235533,6.7092,149.05,149.0,6.7113]
[1728314235855,16.7697,149.08,148.98,47.06412368]
[1728314236026,6.7096,149.04,149.0,6.7113]
[1728314236220,16.7697,149.08,148.98,16.7799]
[1728314236519,8.30603197,149.07,148.96,3.47668936]
[1728314236719,8.30603197,149.07,148.96,16.782]
[1728314236720,5.19597365,149.06,148.96,16.782]
[1728314236962,6.7101,149.03,148.98,6.7121]
[1728314237150,16.7709,149.07,148.96,20.25868936]
[1728314237448,16.7736,149.05,148.96,23.4951]
[1728314237665,6.7105,149.02,148.97,6.7127]
[1728314237827,6.93451836,149.09,149.01,16.7771]
[1728314238032,11.90461038,149.08,149.03,6.71]
[1728314238234,5.19651038,149.07,149.03,6.71]
[1728314238436,5.19651038,149.06,149.03,6.71]
[1728314238642,5.19651038,149.05,149.03,6.71]
[1728314238837,5.19651038,149.04,149.01,16.7771]
[1728314239037,5.19651038,149.11,149.01,16.7771]
[1728314239353,5.19651038,149.1,149.01,16.7771]
[1728314239530,6.7083,149.07,149.02,6.7104]
[1728314239851,5.20266909,149.06,149.05,36.99332368]
[1728314240034,6.7065,149.11,149.06,6.7085]
[1728314240347,33.5183,149.18,149.06,6.7085]
[1728314240348,5.20362419,149.1,149.08,6.7074]
[1728314240550,6.95437503,149.17,149.08,6.7077]
[1728314240551,5.20362419,149.09,149.08,6.7077]
[1728314240843,5.21107028,149.16,149.1,16.7666]
[1728314241064,5.21135351,149.15,149.1,16.7666]
[1728314241256,5.21135351,149.14,149.1,16.7666]
[1728314241422,5.21135351,149.13,149.12,6.706]
[1728314241628,6.95251716,149.21,149.17,6.7037]
[1728314241842,6.8678454,149.22,149.15,16.7606]
[1728314241843,5.22062665,149.2,149.15,16.7606]
[1728314242063,5.22062665,149.19,149.18,6.7032]
[1728314242436,5.22177165,149.19,149.17,6.7037]
[1728314242636,5.22177165,149.21,149.16,6.7041]
[1728314242952,5.22177165,149.2,149.17,6.7037]
[1728314243146,5.22177165,149.19,149.17,6.7037]
[1728314243354,5.22177165,149.18,149.17,6.7037]
[1728314243525,0.1661454,149.22,149.18,6.7032]
[1728314243731,5.23164784,149.21,149.17,6.2584]
[1728314243930,5.23164784,149.2,149.17,6.2584]
[1728314244132,5.23164784,149.19,149.17,6.2584]
[1728314244356,5.23164784,149.18,149.17,12.9621]
[1728314244554,5.23164784,149.21,149.17,6.2584]
[1728314244775,0.1661454,149.22,149.17,36.54262368]
[1728314244776,5.236878,149.2,149.17,36.54262368]
[1728314244951,0.1661454,149.22,149.19,6.7028]
[1728314245148,0.1661454,149.22,149.17,53.30092368]
[1728314245149,5.23698043,149.21,149.17,53.30092368]
[1728314245357,0.1661454,149.22,149.17,29.7204]
[1728314245358,5.23698043,149.2,149.17,29.7204]
[1728314245558,5.23698043,149.21,149.17,29.7204]
[1728314245757,5.23698043,149.2,149.17,29.7204]
[1728314246072,11.94442076,149.19,149.17,6.2584]
[1728314246384,0.1661454,149.22,149.17,6.2584]
[1728314246385,6.7026,149.2,149.17,6.2584]
[1728314246750,0.1661454,149.22,149.12,22.1247]
[1728314247173,6.7042,149.16,149.12,22.1247]
[1728314247683,6.7047,149.15,149.12,22.1247]
[1728314248378,33.5137,149.2,149.07,51.71262368]
[1728314248859,6.7045,149.16,149.1,6.7066]
[1728314249065,6.7047,149.15,149.1,6.7066]
[1728314249264,6.7056,149.13,149.08,23.4772]
[1728314249572,16.7574,149.19,149.09,6.7073]
[1728314249755,6.7051,149.14,149.09,6.7073]
[1728314249953,6.7047,149.15,149.1,6.7068]
[1728314250153,16.7574,149.19,149.08,16.7695]
[1728314250378,37.55068726,149.24,149.07,51.71262368]
[1728314250577,6.7051,149.14,149.1,53.75752368]
[1728314250762,16.7611,149.16,149.07,21.4284]
[1728314250961,33.5125,149.2,149.07,21.4284]
[1728314250962,6.7073,149.09,149.07,21.4284]
[1728314251163,33.5125,149.2,149.02,6.3906]
[1728314251164,6.7084,149.07,149.02,6.3906]
[1728314251572,6.7084,149.07,149.02,13.101]
[1728314251978,16.7657,149.12,149.02,6.3906]
[1728314252569,6.7083,149.07,149.02,13.1007]
[1728314252890,6.7091,149.05,149.02,6.3906]
[1728314253281,6.7097,149.04,149.02,6.3906]
[1728314253579,6.7091,149.06,149.01,22.6576]
[1728314253775,6.7082,149.07,149.02,8.05237056]
[1728314253979,6.7074,149.09,149.02,47.05962368]
[1728314254304,23.72571672,149.13,149.03,1.34170068]
[1728314254488,6.7074,149.09,149.04,16.7729]
[1728314254693,6.7083,149.07,149.02,30.28422368]
[1728314254867,23.72571672,149.13,149.02,30.28422368]
[1728314255188,6.7074,149.09,149.04,6.7094]
[1728314255686,6.7069,149.1,149.05,6.7087]
[1728314256887,23.72571672,149.13,149.05,6.7087]
[1728314257090,6.7079,149.08,149.03,23.4844]
[1728314257288,6.7084,149.07,149.03,16.7744]
[1728314257584,16.7667,149.11,149.03,16.7744]
[1728314257787,6.7083,149.07,149.03,16.7744]
[1728314258183,6.7083,149.07,149.03,23.4844]
[1728314258390,6.7078,149.08,149.03,23.4844]
[1728314258765,6.7085,149.07,149.03,16.7744]
[1728314259506,6.96151672,149.13,149.01,15.9468]
[1728314259701,6.7091,149.05,149.01,15.9468]
[1728314259918,16.7689,149.09,148.99,6.7118]
[1728314260208,6.71,149.03,148.98,6.7122]
[1728314260504,6.7099,149.04,148.99,6.7114]
[1728314261507,6.7088,149.06,149.01,6.7107]
[1728314261692,6.7083,149.07,149.03,6.7099]
[1728314261891,6.7083,149.07,149.0,23.776884]
[1728314261892,16.7655,149.12,149.04,1.34183214]
[1728314262096,6.7074,149.09,149.04,8.05103214]
[1728314262295,6.7074,149.09,149.04,8.05133214]
[1728314262619,6.7069,149.1,149.06,6.7086]
[1728314262790,16.762,149.15,149.05,16.7722]
[1728314263116,6.7065,149.11,149.06,8.0501471]
[1728314263411,6.7061,149.12,149.07,6.7079]
[1728314263705,16.7587,149.18,149.09,6.707]
[1728314263915,6.7051,149.14,149.09,23.4748]
[1728314264108,6.7056,149.13,149.09,23.4748]
[1728314264289,23.77271999,149.18,149.09,23.4748]
[1728314264493,6.7052,149.14,149.09,23.4748]
[1728314264692,6.7057,149.13,149.09,16.7678]
[1728314265704,6.7061,149.12,149.09,16.7678]
[1728314266386,16.7631,149.14,149.06,33.3882]
[1728314266588,6.7067,149.11,149.06,33.3882]
[1728314266812,6.7067,149.11,149.06,40.0968]
[1728314267022,6.7078,149.08,149.06,16.6171]
[1728314267719,6.7074,149.09,149.06,16.6171]
[1728314268091,37.63361658,149.16,149.06,16.6171]
[1728314268420,6.7087,149.06,149.02,6.7104]
[1728314268632,6.7101,149.03,148.98,6.7121]
[1728314268832,8.24942559,149.11,148.97,29.7851]
[1728314269119,6.7105,149.02,148.97,29.7851]
[1728314269302,6.7097,149.04,148.99,6.7115]
[1728314269500,6.7097,149.04,148.97,53.35672368]
[1728314269700,6.7097,149.04,148.99,6.7117]
[1728314270419,40.00359108,149.12,148.97,53.35672368]
[1728314270718,6.7105,149.02,148.98,6.7121]
[1728314270925,6.711,149.01,148.97,53.35672368]
[1728314271420,16.7756,149.03,148.95,15.2424502]
[1728314271598,6.7128,148.97,148.95,15.2424502]
[1728314272918,6.7123,148.98,148.95,15.2424502]
[1728314273110,6.7114,149.0,148.95,21.9558502]
[1728314273423,6.7118,149.0,148.95,38.7390502]
[1728314273804,6.711,149.01,148.96,30.489984]
[1728314274319,6.7121,148.99,148.95,38.7390502]
[1728314274528,16.7752,149.03,148.95,15.2424502]
[1728314274705,6.7124,148.98,148.95,15.2424502]
[1728314274905,6.7129,148.97,148.95,15.2424502]
[1728314275123,6.7124,148.98,148.95,15.2424502]
[1728314275993,6.7118,148.99,148.96,1.3425548]
[1728314276625,6.7118,148.99,148.95,21.9559502]
[1728314277099,6.7118,148.99,148.95,0.0808502]
[1728314277100,6.7132,148.96,148.95,0.0808502]
[1728314277515,33.5572,149.0,148.86,22.9796]
[1728314277721,6.7141,148.94,148.89,6.7162]
[1728314277909,6.7141,148.94,148.9,1.34293298]
[1728314278105,6.7146,148.93,148.88,16.7913]
[1728314278298,6.7146,148.93,148.89,6.7163]
[1728314278704,6.7142,148.94,148.89,6.7163]
[1728314279515,16.7836,148.96,148.86,6.1857]
[1728314280124,6.7163,148.89,148.86,6.1857]
[1728314280425,16.786,148.94,148.87,6.7172]
[1728314280426,6.7151,148.92,148.87,6.7172]
[1728314280631,6.7156,148.91,148.86,16.7938]
[1728314280804,6.7156,148.91,148.86,23.5114]
[1728314281314,16.7871,148.93,148.84,15.8067]
[1728314281839,6.7167,148.89,148.84,22.5251]
[1728314282037,16.7893,148.91,148.84,15.8067]
[1728314282205,16.7893,148.91,148.82,1.34375155]
[1728314282411,16.7893,148.91,148.82,16.7982]
[1728314282612,6.7164,148.89,148.84,6.7185]
[1728314282826,6.7163,148.9,148.85,8.06162699]
[1728314283137,6.7136,148.95,148.9,6.7158]
[1728314283437,39.855,149.0,148.92,6.7149]
[1728314283438,16.7787,149.0,148.92,6.7149]
[1728314283936,6.7119,148.99,148.94,6.714]
[1728314284109,6.7118,148.99,148.89,16.6504]
[1728314284309,6.7118,148.99,148.94,23.4983]
[1728314284519,6.7108,149.02,148.97,6.7123]
[1728314284812,7.01757031,149.03,148.93,16.7859]
[1728314285021,6.7119,148.99,148.93,16.7859]
[1728314285209,6.7119,148.99,148.95,6.7135]
[1728314285408,13.72767031,149.03,148.99,6.7118]
[1728314285605,256.0,149.16,149.0,1.34229335]
[1728314285606,16.7663,149.11,149.0,1.34229335]
[1728314286041,7.01766935,149.11,149.01,16.7763]
[1728314286230,88.28547894,149.12,149.03,16.774]
[1728314286407,105.05067894,149.12,149.0,16.6504]
[1728314286615,6.7091,149.05,149.0,16.6504]
[1728314286914,6.7096,149.04,149.0,16.6504]
[1728314287327,16.7688,149.09,149.0,16.6504]
[1728314287510,6.7082,149.07,149.01,6.7109]
[1728314287715,16.7683,149.1,149.0,16.6504]
[1728314287938,6.71,149.04,148.99,16.7786]
[1728314288234,6.7105,149.02,148.96,6.7131]
[1728314288739,6.7105,149.02,148.97,6.7127]
[1728314288911,16.7706,149.07,148.96,6.713]
[1728314288912,6.7109,149.01,148.96,6.713]
[1728314289337,6.7105,149.02,148.96,6.713]
[1728314289827,16.7706,149.07,148.97,8.05502445]
[1728314289828,6.7101,149.03,148.97,8.05502445]
[1728314290230,6.7101,149.03,148.97,6.7126]
[1728314291142,6.7107,149.02,148.97,6.7126]
[1728314291525,6.7114,149.0,148.95,39.1578]
[1728314291721,6.7128,148.97,148.92,23.5022]
[1728314291948,8.59951932,149.02,148.91,6.0973]
[1728314292134,6.715,148.92,148.91,6.0973]
[1728314292449,16.7832,148.96,148.9,15.1494]
[1728314292631,6.7153,148.92,148.87,6.7171]
[1728314292825,6.7144,148.94,148.89,6.7163]
[1728314293030,16.7796,149.0,148.92,6.7149]
[1728314293237,23.3623,149.04,148.93,6.7145]
[1728314293448,23.3623,149.04,148.92,6.7149]
[1728314293449,6.7128,148.97,148.92,6.7149]
[1728314293736,6.5876,149.04,148.92,1.34289946]
[1728314293737,16.777,149.02,148.92,1.34289946]
[1728314293940,6.7117,149.0,148.95,6.7135]
[1728314294453,6.711,149.01,148.96,6.7131]
[1728314294657,6.7114,149.0,148.96,6.7131]
[1728314294834,16.7732,149.05,148.96,6.713]
[1728314294835,6.711,149.01,148.96,6.713]
[1728314295036,6.711,149.01,148.88,82.85097032]
[1728314295347,4.03169602,149.06,148.89,23.776884]
[1728314295545,6.7123,148.98,148.93,6.7145]
[1728314295765,16.776,149.03,148.93,6.7145]
[1728314296047,16.776,149.03,148.89,23.776884]
[1728314296048,23.3640857,149.0,148.89,16.7903]
[1728314296230,6.7132,148.96,148.92,6.7146]
[1728314296430,6.7128,148.97,148.92,6.7146]
[1728314296629,6.714,148.95,148.91,16.7878]
[1728314296851,16.7787,149.0,148.91,23.5028]
[1728314297058,6.7141,148.95,148.9,6.7157]
[1728314297233,6.7141,148.95,148.91,6.7154]
[1728314297747,6.7133,148.96,148.9,16.7889]
[1728314297931,16.7787,149.0,148.9,16.7889]
[1728314298127,6.7141,148.94,148.9,16.7889]
[1728314298361,6.7141,148.94,148.9,23.5044]
[1728314298535,6.7141,148.94,148.9,16.7889]
[1728314298852,6.7137,148.95,148.9,23.5048]
[1728314299456,6.7137,148.95,148.91,6.7154]
[1728314299953,40.57294565,149.03,148.92,1.34297773]
[1728314300165,23.79754565,149.03,148.96,6.7131]
[1728314300335,7.02174565,149.03,148.92,23.776884]
[1728314300654,6.7108,149.02,148.97,6.7126]
[1728314301038,13.73174565,149.03,148.97,1.34237841]
[1728314301358,6.7106,149.02,148.98,6.7122]
[1728314301658,7.02174565,149.03,148.98,16.7799]
[1728314301957,6.71,149.03,148.98,23.492]
[1728314302159,4.02198534,149.07,148.99,1.34228807]
[1728314302371,6.7095,149.05,148.99,1.34228807]
[1728314302538,16.7689,149.09,148.99,1.34228807]
[1728314302539,6.7086,149.07,149.02,6.7104]
[1728314302855,6.7086,149.07,148.96,21.6693]
[1728314302856,24.80381932,149.08,148.91,6.2058]
[1728314303061,6.7137,148.95,148.91,12.9209]
[1728314303259,8.59951932,148.96,148.91,6.2058]
[1728314303460,8.59951932,148.96,148.92,16.7871]
[1728314303767,8.59951932,149.0,148.92,16.7871]
[1728314304349,6.7135,148.96,148.92,16.7871]
[1728314304955,6.7135,148.96,148.92,23.502]
[1728314305345,16.7746,149.04,148.94,16.7848]
[1728314305549,6.7117,149.0,148.95,6.7135]
[1728314306670,16.7746,149.04,148.92,23.776884]
[1728314306975,6.71,149.03,148.99,6.7117]
[1728314307168,1.16682481,149.07,149.0,1.34223578]
[1728314307392,6.709,149.06,149.01,6.7106]
[1728314307669,23.78588861,149.1,149.0,16.7777]
[1728314307670,16.7701,149.08,149.0,16.7777]
[1728314307862,6.7101,149.03,148.99,6.7114]
[1728314308091,6.7097,149.04,149.0,6.7112]